bitfinex/quotes_BTCUSD_20240719
["timestamp","ask_amount","ask_price","bid_price","bid_amount"]
[1721356111205,0.00183,63884.0,63883.0,2.51047135]
[1721356111382,0.00183,63884.0,63883.0,2.52447135]
[1721356112114,0.00183,63884.0,63883.0,2.52446611]
[1721356112312,0.00083,63888.0,63887.0,1.936886]
[1721356112491,0.00083,63888.0,63887.0,2.43475611]
[1721356113323,0.00083,63888.0,63887.0,2.50035611]
[1721356113498,0.00083,63888.0,63887.0,2.51435611]
[1721356113499,0.00183,63888.0,63887.0,2.51435611]
[1721356113723,0.0781,63897.0,63896.0,1.524636]
[1721356113922,0.0635,63908.0,63896.0,1.524636]
[1721356113923,0.0826,63908.0,63907.0,0.206477]
[1721356114099,0.00083,63919.0,63907.0,0.206477]
[1721356114100,0.1461,63912.0,63911.0,0.206467]
[1721356114301,0.0826,63912.0,63911.0,1.20716121]
[1721356114606,0.0635,63916.0,63915.0,1.145202]
[1721356114607,0.1461,63916.0,63915.0,1.145202]
[1721356114807,0.1461,63916.0,63915.0,1.41308374]
[1721356115013,0.1461,63916.0,63915.0,1.51308374]
[1721356115214,0.00083,63919.0,63917.0,0.05]
[1721356115421,0.00083,63919.0,63918.0,1.72593174]
[1721356115622,0.00083,63919.0,63918.0,1.99103174]
[1721356116000,0.00083,63919.0,63918.0,2.49665685]
[1721356116171,0.00083,63919.0,63918.0,1.95585685]
[1721356116373,0.00083,63919.0,63918.0,1.81535685]
[1721356116576,0.00083,63919.0,63918.0,1.86535685]
[1721356117431,0.00083,63919.0,63918.0,1.87935685]
[1721356118010,0.00083,63919.0,63918.0,1.84335685]
[1721356118209,0.00083,63919.0,63918.0,1.89335685]
[1721356118387,0.00083,63919.0,63918.0,1.5304554]
[1721356118588,0.13783,63919.0,63918.0,1.40053174]
[1721356118827,0.00083,63919.0,63918.0,1.99850633]
[1721356119012,0.00083,63919.0,63918.0,2.07843139]
[1721356119390,0.00083,63919.0,63918.0,1.94850633]
[1721356121006,0.00083,63919.0,63918.0,1.40980633]
[1721356121214,0.14103,63919.0,63918.0,1.40980633]
[1721356123424,0.14103,63919.0,63918.0,1.53973935]
[1721356123851,0.00083,63919.0,63918.0,1.76863935]
[1721356124147,0.00083,63919.0,63918.0,2.04443935]
[1721356124377,0.00083,63919.0,63918.0,2.35733935]
[1721356125140,0.00083,63919.0,63918.0,1.72288935]
[1721356125352,0.00083,63919.0,63918.0,1.81553935]
[1721356125603,0.00083,63919.0,63918.0,2.07843935]
[1721356125942,0.00083,63919.0,63918.0,2.12843935]
[1721356127893,0.00083,63919.0,63918.0,2.1284269]
[1721356128721,0.00083,63919.0,63918.0,1.99850633]
[1721356128933,0.0782,63928.0,63927.0,0.78214]
[1721356129120,0.0782,63928.0,63927.0,1.05952174]
[1721356130351,0.0782,63928.0,63927.0,1.06452174]
[1721356131206,0.0782,63928.0,63927.0,1.07452174]
[1721356131563,0.0782,63928.0,63927.0,1.2044431]
[1721356132550,0.0782,63928.0,63927.0,0.76166574]
[1721356132551,0.142,63928.0,63927.0,0.76166574]
[1721356132912,0.142,63928.0,63927.0,1.07452174]
[1721356133113,0.142,63928.0,63927.0,1.07209019]
[1721356134304,0.142,63928.0,63927.0,1.08126878]
[1721356134937,0.142,63928.0,63927.0,1.21119295]
[1721356135753,0.142,63928.0,63927.0,1.08126878]
[1721356136195,0.142,63928.0,63927.0,1.21119555]
[1721356136404,0.142,63928.0,63927.0,1.30149555]
[1721356137649,0.142,63928.0,63927.0,1.17156878]
[1721356137832,0.142,63928.0,63927.0,1.30149293]
[1721356139969,0.142,63928.0,63927.0,0.29930589]
[1721356140206,0.142,63928.0,63927.0,0.015]
[1721356140386,0.16054536,63928.0,63927.0,0.015]
[1721356141400,0.62982136,63928.0,63927.0,0.015]
[1721356143219,0.31697036,63928.0,63927.0,0.015]
[1721356143443,0.31697036,63928.0,63927.0,0.14494666]
[1721356143807,0.31780036,63928.0,63927.0,0.14494666]
[1721356144014,0.31780036,63928.0,63927.0,0.4557564]
[1721356144015,0.16137536,63928.0,63927.0,0.4557564]
[1721356144412,0.16137536,63928.0,63927.0,0.45574825]
[1721356144726,0.14283,63928.0,63927.0,0.45574825]
[1721356147457,0.14283,63928.0,63927.0,0.45574772]
[1721356148288,0.14283,63928.0,63927.0,0.29931972]
[1721356148455,0.16135847,63928.0,63927.0,0.29931972]
[1721356150570,0.16135847,63928.0,63927.0,0.16938174]
[1721356163558,0.16135847,63928.0,63927.0,0.015]
[1721356169744,0.63063447,63928.0,63927.0,0.015]
[1721356172046,0.31778347,63928.0,63927.0,0.015]
[1721356173471,0.16135847,63928.0,63927.0,0.16938174]
[1721356173671,0.14283,63928.0,63927.0,0.16938174]
[1721356173940,0.14283,63928.0,63927.0,0.29931316]
[1721356174350,0.07903,63928.0,63927.0,0.29931316]
[1721356174722,0.09755248,63928.0,63927.0,0.29931316]
[1721356175481,0.09755248,63928.0,63927.0,0.16938174]
[1721356180377,0.09475248,63928.0,63927.0,0.32580974]
[1721356180577,0.07623,63928.0,63927.0,0.32580974]
[1721356180745,0.07623,63928.0,63927.0,0.45573898]
[1721356182884,0.07623,63928.0,63927.0,0.45573792]
[1721356183292,0.00083,63928.0,63927.0,1.4173069]
[1721356183446,0.00083,63928.0,63927.0,1.5874069]
[1721356183853,0.00083,63928.0,63927.0,1.6476069]
[1721356184917,0.00083,63928.0,63927.0,1.65710712]
[1721356185092,0.00083,63928.0,63927.0,1.70387098]
[1721356185457,0.00083,63928.0,63927.0,1.65710712]
[1721356185935,0.00083,63928.0,63927.0,1.70387098]
[1721356186156,0.00083,63928.0,63927.0,1.70384778]
[1721356186349,0.00083,63928.0,63927.0,1.65710712]
[1721356188951,0.00083,63928.0,63927.0,1.65210712]
[1721356189152,0.00083,63928.0,63927.0,1.64210712]
[1721356189358,0.00083,63928.0,63927.0,1.53817796]
[1721356189557,0.00083,63928.0,63927.0,1.66809127]
[1721356189786,0.00083,63928.0,63927.0,1.65409127]
[1721356189993,0.00083,63928.0,63927.0,1.66809127]
[1721356190775,0.00083,63928.0,63927.0,1.65609127]
[1721356191182,0.00083,63928.0,63927.0,1.66909127]
[1721356192636,0.00083,63928.0,63927.0,1.66909114]
[1721356192810,0.00083,63928.0,63927.0,1.79900405]
[1721356193054,0.00083,63928.0,63927.0,1.84900405]
[1721356193257,0.00083,63928.0,63927.0,2.50873874]
[1721356193711,0.00083,63928.0,63927.0,2.52747521]
[1721356194272,0.00083,63928.0,63927.0,2.60213522]
[1721356194776,0.00083,63928.0,63927.0,2.50873874]
[1721356195404,0.00083,63928.0,63927.0,2.57875728]
[1721356195827,0.00083,63928.0,63927.0,2.16186005]
[1721356196015,0.00083,63928.0,63927.0,2.57872445]
[1721356196456,0.00083,63928.0,63927.0,2.18186238]
[1721356196689,0.00083,63928.0,63927.0,2.16184401]
[1721356197439,0.00083,63928.0,63927.0,2.20850617]
[1721356197782,0.00083,63928.0,63927.0,2.23186238]
[1721356198407,0.00083,63928.0,63927.0,2.16184401]
[1721356199186,0.00083,63928.0,63927.0,2.20849974]
[1721356200200,0.00083,63928.0,63927.0,1.71534374]
[1721356200560,0.08263,63928.0,63927.0,0.70712055]
[1721356200751,0.14673,63928.0,63927.0,0.85404833]
[1721356200959,0.14673,63928.0,63927.0,0.88057892]
[1721356201901,0.706306,63928.0,63927.0,0.15691318]
[1721356202117,0.928857,63928.0,63927.0,0.15691318]
[1721356202978,0.928857,63928.0,63927.0,0.14291318]
[1721356203184,0.14673,63928.0,63927.0,0.14291318]
[1721356204026,0.14673,63928.0,63927.0,0.12991318]
[1721356204434,0.14673,63928.0,63927.0,0.13091318]
[1721356205133,0.14673,63928.0,63927.0,0.12991318]
[1721356205354,0.303155,63928.0,63927.0,0.12991318]
[1721356205499,0.14673,63928.0,63927.0,0.13091318]
[1721356205676,0.14773,63928.0,63927.0,0.28529492]
[1721356205875,0.14773,63928.0,63927.0,0.44172292]
[1721356206719,0.14773,63928.0,63927.0,0.31180974]
[1721356206927,0.14773,63928.0,63927.0,0.62466574]
[1721356207604,0.14773,63928.0,63927.0,0.31180974]
[1721356208013,0.14773,63928.0,63927.0,0.31080974]
[1721356208253,0.14673,63928.0,63927.0,0.31080974]
[1721356208839,0.14673,63928.0,63922.0,0.156439]
[1721356209039,0.14673,63928.0,63921.0,0.312885]
[1721356209040,0.002794,63927.0,63923.0,0.15438174]
[1721356210371,0.0757,63927.0,63923.0,0.15438174]
[1721356210669,0.1402,63924.0,63918.0,0.000913]
[1721356210816,0.0757,63922.0,63919.0,0.15438174]
[1721356211020,0.0757,63922.0,63918.0,0.000913]
[1721356211021,0.0645,63921.0,63918.0,0.000913]
[1721356211216,0.0757,63920.0,63918.0,0.000913]
[1721356211603,0.0612,63919.0,63918.0,0.000913]
[1721356211823,0.295948,63919.0,63918.0,0.000913]
[1721356212922,0.1395,63919.0,63918.0,0.000913]
[1721356213126,0.1395,63919.0,63918.0,0.004913]
[1721356213896,0.1395,63919.0,63918.0,0.011913]
[1721356214336,0.1395,63919.0,63918.0,0.007913]
[1721356215913,0.1395,63919.0,63918.0,0.010913]
[1721356216106,0.1395,63919.0,63918.0,0.63464474]
[1721356216512,0.1395,63919.0,63918.0,0.32174474]
[1721356217860,0.1395,63919.0,63918.0,0.16529474]
[1721356218037,0.31443605,63919.0,63918.0,0.010913]
[1721356218240,0.62733205,63919.0,63918.0,0.010913]
[1721356219117,0.94022805,63919.0,63918.0,0.010913]
[1721356220453,1.25312405,63919.0,63918.0,0.010913]
[1721356220605,1.25312405,63919.0,63918.0,0.000913]
[1721356221224,1.72040179,63919.0,63918.0,0.000913]
[1721356221369,1.72040179,63919.0,63890.0,0.0636]
[1721356221370,0.05,63917.0,63890.0,0.0636]
[1721356221578,0.0805,63902.0,63894.0,0.156508]
[1721356221783,0.08362781,63901.0,63895.0,0.15438174]
[1721356222002,0.08362781,63901.0,63896.0,0.156503]
[1721356222213,0.08362781,63901.0,63897.0,0.15438174]
[1721356222412,0.08362781,63901.0,63897.0,0.31088274]
[1721356223995,0.08362781,63901.0,63897.0,0.31788274]
[1721356224814,0.08362781,63901.0,63897.0,0.32088274]
[1721356225747,0.08362781,63901.0,63898.0,0.156498]
[1721356225950,0.08362781,63901.0,63898.0,0.31087974]
[1721356226988,0.08362781,63901.0,63898.0,0.16438174]
[1721356227241,0.0777,63900.0,63898.0,0.16438174]
[1721356227826,0.01842781,63899.0,63898.0,0.16438174]
[1721356228204,0.01842781,63899.0,63898.0,0.16138174]
[1721356228585,0.01842781,63899.0,63898.0,0.16538174]
[1721356228998,0.01842781,63899.0,63898.0,0.32187974]
[1721356229193,0.0777,63900.0,63898.0,0.15838174]
[1721356229402,0.01842781,63899.0,63898.0,0.004]
[1721356229979,0.01842781,63899.0,63898.0,0.013]
[1721356230360,0.01842781,63899.0,63898.0,0.009]
[1721356230513,0.01842781,63899.0,63896.0,0.156501]
[1721356230715,0.01842781,63899.0,63898.0,0.005]
[1721356230935,0.01842781,63899.0,63898.0,0.015]
[1721356231142,0.0777,63900.0,63898.0,0.015]
[1721356231337,0.0777,63900.0,63898.0,0.005]
[1721356231543,0.01842781,63899.0,63897.0,0.156501]
[1721356233455,0.01842781,63899.0,63898.0,0.01]
[1721356233773,0.01842781,63899.0,63897.0,0.156501]
[1721356233938,0.01842781,63899.0,63897.0,0.166501]
[1721356234119,0.01842781,63899.0,63897.0,0.156501]
[1721356234320,0.01842781,63899.0,63897.0,0.161501]
[1721356234522,0.01842781,63899.0,63897.0,0.171501]
[1721356235984,0.01842781,63899.0,63897.0,0.156501]
[1721356236313,0.01842781,63899.0,63897.0,0.161501]
[1721356236519,0.01842781,63899.0,63897.0,0.171501]
[1721356236848,0.01842781,63899.0,63897.0,0.161501]
[1721356237340,0.01842781,63899.0,63897.0,0.166501]
[1721356237678,0.01842781,63899.0,63897.0,0.171501]
[1721356237874,0.01842781,63899.0,63897.0,0.181501]
[1721356239107,0.01842781,63899.0,63897.0,0.161501]
[1721356239302,0.01842781,63899.0,63897.0,0.166501]
[1721356239506,0.01842781,63899.0,63898.0,0.156499]
[1721356239725,0.0777,63900.0,63898.0,0.156499]
[1721356240223,0.01836035,63899.0,63898.0,0.156499]
[1721356240596,0.0777,63900.0,63898.0,0.156499]
[1721356240817,0.0777,63900.0,63898.0,0.161499]
[1721356240980,0.01836035,63899.0,63898.0,0.170499]
[1721356241383,0.0777,63900.0,63898.0,0.170499]
[1721356241586,0.0777,63900.0,63899.0,0.40127774]
[1721356241797,0.0825,63911.0,63904.0,0.312967]
[1721356241964,0.0825,63911.0,63905.0,0.156481]
[1721356242163,0.0825,63908.0,63905.0,0.156481]
[1721356242800,0.0183545,63907.0,63905.0,0.156481]
[1721356243721,0.0941545,63907.0,63906.0,0.469438]
[1721356244108,0.0758,63907.0,63906.0,0.156479]
[1721356246208,0.0758,63907.0,63906.0,0.007]
[1721356246555,0.09415125,63907.0,63906.0,0.007]
[1721356246758,0.09415125,63907.0,63906.0,0.009]
[1721356247606,0.09415125,63907.0,63906.0,0.012]
[1721356247780,0.15775125,63907.0,63906.0,0.012]
[1721356249276,0.15775125,63907.0,63906.0,0.007]
[1721356249638,0.1366,63906.0,63897.0,0.000913]
[1721356249776,0.01835125,63907.0,63898.0,0.12999052]
[1721356249777,0.0752,63903.0,63898.0,0.12999052]
[1721356249978,0.0614,63902.0,63899.0,0.12999052]
[1721356250185,0.0752,63901.0,63900.0,0.12999468]
[1721356250436,0.09355125,63901.0,63900.0,0.12999468]
[1721356251213,0.09355125,63901.0,63900.0,0.75385942]
[1721356251214,0.01835125,63901.0,63900.0,0.75385942]
[1721356251423,0.083,63904.0,63903.0,0.156487]
[1721356253578,0.083,63904.0,63903.0,0.158487]
[1721356253986,0.083,63904.0,63903.0,0.164487]
[1721356254766,0.083,63904.0,63903.0,0.158487]
[1721356255527,0.09792,63904.0,63903.0,0.002]
[1721356255732,0.09792,63904.0,63897.0,0.000913]
[1721356255733,0.156499,63898.0,63897.0,0.000913]
[1721356255951,0.299899,63898.0,63897.0,0.000913]
[1721356256154,0.31826246,63898.0,63897.0,0.000913]
[1721356256843,0.16176346,63898.0,63897.0,0.000913]
[1721356257024,0.16176346,63898.0,63897.0,0.006913]
[1721356257453,0.10006346,63898.0,63897.0,0.001913]
[1721356257902,0.0817,63898.0,63897.0,0.001913]
[1721356258106,0.10004558,63898.0,63897.0,0.002913]
[1721356259328,0.0817,63898.0,63897.0,0.000913]
[1721356259527,0.0817,63898.0,63897.0,0.002913]
[1721356259931,0.0817,63898.0,63897.0,0.157414]
[1721356260137,0.0817,63898.0,63897.0,0.162414]
[1721356261042,0.10004558,63898.0,63897.0,0.161414]
[1721356263601,0.10004558,63898.0,63897.0,0.62479874]
[1721356263602,0.01834558,63898.0,63897.0,0.62479874]
[1721356263814,0.01834558,63898.0,63897.0,1.34360474]
[1721356264017,0.0798,63907.0,63906.0,0.156479]
[1721356264420,0.09814642,63907.0,63906.0,0.156479]
[1721356265327,0.09814642,63907.0,63906.0,0.99817874]
[1721356265328,0.01834642,63907.0,63906.0,0.99817874]
[1721356265523,0.01834642,63907.0,63906.0,1.02117874]
[1721356265725,0.0823,63911.0,63906.0,1.02117874]
[1721356265726,0.0823,63911.0,63910.0,0.15647]
[1721356266103,0.0823,63911.0,63910.0,0.46941]
[1721356266308,0.0823,63911.0,63910.0,0.15647]
[1721356266892,0.10064642,63911.0,63910.0,0.15647]
[1721356267522,0.10064642,63911.0,63910.0,0.15747]
[1721356268085,0.10064642,63911.0,63910.0,0.16147]
[1721356269373,0.10064642,63911.0,63910.0,0.00419733]
[1721356270073,0.16564642,63911.0,63910.0,0.00419733]
[1721356270419,0.32211342,63911.0,63910.0,0.00419733]
[1721356271359,0.1405,63908.0,63901.0,0.156489]
[1721356271563,0.1405,63908.0,63902.0,0.15438174]
[1721356271889,0.01836584,63907.0,63903.0,0.156486]
[1721356272026,0.01836584,63907.0,63903.0,0.31086774]
[1721356273771,0.01836584,63907.0,63903.0,0.31286774]
[1721356273970,0.01836584,63907.0,63904.0,0.156484]
[1721356276641,0.01836584,63907.0,63903.0,0.15438174]
[1721356277073,0.01836584,63907.0,63904.0,0.002]
[1721356277392,0.1443,63906.0,63904.0,0.002]
[1721356277598,0.239482,63905.0,63904.0,0.002]
[1721356277799,0.1416,63904.0,63898.0,0.4684]
[1721356278004,0.1416,63903.0,63898.0,0.4684]
[1721356278205,0.156496,63899.0,63898.0,0.4684]
[1721356278456,0.302896,63899.0,63898.0,0.4684]
[1721356278675,0.1464,63899.0,63898.0,0.4684]
[1721356278863,0.16475966,63899.0,63898.0,0.4684]
[1721356279977,0.16475966,63899.0,63898.0,0.4764]
[1721356281208,0.32125566,63899.0,63898.0,0.4884]
[1721356281352,0.32125566,63899.0,63898.0,0.02]
[1721356283704,0.94724166,63899.0,63898.0,0.02]
[1721356284295,0.94724166,63899.0,63898.0,0.012]
[1721356284461,0.782495,63898.0,63897.0,0.000913]
[1721356284663,0.921495,63898.0,63897.0,0.000913]
[1721356285031,0.93979029,63898.0,63897.0,0.000913]
[1721356285484,0.31379429,63898.0,63897.0,0.000913]
[1721356287160,0.31679429,63898.0,63897.0,0.000913]
[1721356287536,0.31479429,63898.0,63897.0,0.000913]
[1721356287847,0.15829529,63898.0,63897.0,0.000913]
[1721356288248,0.09659529,63898.0,63897.0,0.000913]
[1721356289091,0.09559529,63898.0,63897.0,0.000913]
[1721356289266,0.09659529,63898.0,63897.0,0.000913]
[1721356290379,0.09659529,63898.0,63897.0,0.001913]
[1721356294096,0.25309429,63898.0,63897.0,0.001913]
[1721356294329,0.09659529,63898.0,63897.0,0.001913]
[1721356300918,0.25309429,63898.0,63897.0,0.001913]
[1721356301134,0.62729229,63898.0,63897.0,0.001913]
[1721356301298,0.94029029,63898.0,63897.0,0.001913]
[1721356302417,0.93929029,63898.0,63897.0,0.001913]
[1721356302674,0.94029029,63898.0,63897.0,0.000913]
[1721356303006,0.94029029,63898.0,63897.0,0.001913]
[1721356303620,0.93929029,63898.0,63897.0,0.001913]
[1721356303821,0.93929029,63898.0,63897.0,0.000913]
[1721356304084,0.94029029,63898.0,63897.0,0.000913]
[1721356304313,0.94129029,63898.0,63897.0,0.000913]
[1721356305290,0.94029029,63898.0,63897.0,0.000913]
[1721356305898,0.94129029,63898.0,63897.0,0.000913]
[1721356307140,0.62829229,63898.0,63897.0,0.000913]
[1721356307345,0.02029529,63898.0,63897.0,0.157414]
[1721356307550,0.02029529,63898.0,63897.0,0.293014]
[1721356307749,0.002,63898.0,63897.0,0.293014]
[1721356307955,0.002,63898.0,63897.0,0.91902]
[1721356308175,0.002,63898.0,63897.0,0.606017]
[1721356308381,0.002,63898.0,63897.0,0.91902]
[1721356308583,0.001,63898.0,63897.0,0.91902]
[1721356308788,0.002,63898.0,63897.0,0.91902]
[1721356309003,0.002,63898.0,63897.0,1.38640474]
[1721356309208,0.002,63898.0,63897.0,1.40940474]
[1721356309416,0.001,63898.0,63897.0,1.40940474]
[1721356309620,0.0797,63908.0,63903.0,0.156486]
[1721356309830,0.00975067,63907.0,63903.0,0.156486]
[1721356310243,0.00975067,63907.0,63900.0,0.156493]
[1721356310444,0.00975067,63907.0,63901.0,0.15438174]
[1721356311083,0.16622867,63907.0,63901.0,0.15438174]
[1721356311230,0.156487,63903.0,63897.0,0.008913]
[1721356311430,0.00975077,63902.0,63897.0,0.008913]
[1721356311636,0.00975077,63902.0,63897.0,0.000913]
[1721356312077,0.00975077,63902.0,63899.0,0.156496]
[1721356312275,0.00975077,63901.0,63899.0,0.156496]
[1721356312485,0.0763,63906.0,63900.0,0.15438174]
[1721356312714,0.00975066,63905.0,63900.0,0.15438174]
[1721356312919,0.00083,63910.0,63900.0,0.15438174]
[1721356312920,0.00083,63910.0,63909.0,0.469416]
[1721356313122,0.01058031,63910.0,63909.0,1.27268574]
[1721356313324,0.01058031,63910.0,63909.0,1.40968574]
[1721356314379,0.01057988,63910.0,63909.0,1.40968574]
[1721356315352,0.01057988,63910.0,63909.0,1.27268574]
[1721356315925,0.01057988,63910.0,63909.0,1.27368574]
[1721356316338,0.01057988,63910.0,63909.0,1.27868574]
[1721356316744,0.01057988,63910.0,63909.0,1.34968574]
[1721356316962,0.00083,63910.0,63909.0,1.34968574]
[1721356322059,0.00083,63910.0,63909.0,0.31685374]
[1721356322259,0.01057998,63910.0,63909.0,0.31685374]
[1721356322680,0.02895693,63910.0,63909.0,0.62979774]
[1721356323009,0.02895697,63910.0,63909.0,0.62979774]
[1721356325018,0.02895697,63910.0,63909.0,0.69549774]
[1721356326172,0.01920695,63910.0,63909.0,0.69549774]
[1721356326373,0.02895692,63910.0,63909.0,0.69549774]
[1721356327143,0.01920695,63910.0,63909.0,0.62979774]
[1721356327542,0.02895693,63910.0,63909.0,0.62979774]
[1721356327836,0.01057998,63910.0,63909.0,0.62979774]
[1721356328627,0.00083,63910.0,63909.0,0.62979774]
[1721356329062,0.14303,63910.0,63909.0,0.31685374]
[1721356329290,0.15277996,63910.0,63909.0,0.31685374]
[1721356329466,0.16809673,63910.0,63909.0,0.62979774]
[1721356329665,0.10429673,63910.0,63909.0,0.62979774]
[1721356330100,0.07923,63910.0,63909.0,0.62979774]
[1721356330308,0.09201373,63910.0,63909.0,0.62979774]
[1721356330735,0.07923,63910.0,63909.0,0.62979774]
[1721356330938,0.09201354,63910.0,63909.0,0.62979774]
[1721356331267,0.10176349,63910.0,63909.0,0.62979774]
[1721356331471,0.16446349,63910.0,63909.0,0.006]
[1721356333605,0.16446374,63910.0,63909.0,0.006]
[1721356333785,0.16056481,63910.0,63909.0,0.006]
[1721356337840,0.1516802,63910.0,63909.0,0.006]
[1721356339046,0.1516802,63910.0,63909.0,0.005]
[1721356339279,0.1516802,63910.0,63906.0,0.156479]
[1721356339476,0.0097502,63909.0,63906.0,0.156479]
[1721356340077,0.14193,63910.0,63906.0,0.156479]
[1721356340252,0.0097502,63909.0,63906.0,0.156479]
[1721356340670,0.0097502,63909.0,63906.0,0.161479]
[1721356340867,0.0097502,63909.0,63906.0,0.156479]
[1721356341268,0.0097502,63909.0,63906.0,0.160479]
[1721356342719,0.0097502,63909.0,63906.0,0.157479]
[1721356343170,0.0097502,63909.0,63906.0,0.162479]
[1721356343380,0.14193,63910.0,63906.0,0.162479]
[1721356343552,0.00975022,63909.0,63906.0,0.162479]
[1721356344185,0.00975022,63909.0,63906.0,0.161479]
[1721356344425,0.00975022,63909.0,63906.0,0.156479]
[1721356345421,0.00975022,63909.0,63906.0,0.159479]
[1721356346683,0.00975022,63908.0,63906.0,0.156479]
[1721356346862,0.00975022,63907.0,63906.0,0.161479]
[1721356347070,0.00975022,63907.0,63906.0,0.162479]
[1721356347274,0.0784,63907.0,63906.0,0.162479]
[1721356347472,0.0784,63907.0,63906.0,0.161479]
[1721356347473,0.08815022,63907.0,63906.0,0.161479]
[1721356347732,0.15275022,63907.0,63906.0,0.156479]
[1721356347932,0.15275022,63907.0,63906.0,0.158479]
[1721356348151,0.15275022,63907.0,63906.0,0.165479]
[1721356348901,0.15275022,63907.0,63906.0,0.163479]
[1721356349965,0.15275022,63907.0,63906.0,0.31786074]
[1721356349966,0.00975021,63907.0,63906.0,0.31786074]
[1721356350170,0.00975015,63907.0,63906.0,0.16138174]
[1721356350364,0.00975008,63909.0,63908.0,0.1351]
[1721356350516,0.00083,63910.0,63909.0,0.1775]
[1721356350719,0.01057987,63910.0,63909.0,1.11424174]
[1721356350946,0.01057987,63910.0,63909.0,1.42718574]
[1721356352191,0.01057987,63910.0,63909.0,1.33678574]
[1721356353053,0.01057964,63910.0,63909.0,1.33678574]
[1721356353742,0.00176544,63910.0,63909.0,1.33778574]
[1721356353952,0.07044294,63912.0,63911.0,0.782337]
[1721356354154,0.07044294,63912.0,63911.0,0.95971874]
[1721356355128,0.07144294,63912.0,63911.0,0.95971874]
[1721356355340,0.001,63912.0,63911.0,0.96171874]
[1721356358126,0.09492393,63912.0,63911.0,0.96171874]
[1721356358534,0.09492393,63912.0,63911.0,0.002]
[1721356358535,0.17362393,63912.0,63911.0,0.002]
[1721356358734,0.4933447,63912.0,63911.0,0.002]
[1721356358943,0.37593979,63912.0,63911.0,0.002]
[1721356359350,0.68886979,63912.0,63911.0,0.002]
[1721356359753,0.611695,63912.0,63911.0,0.002]
[1721356363808,0.62144534,63912.0,63911.0,0.002]
[1721356364001,0.611695,63912.0,63911.0,0.002]
[1721356365381,0.1423,63912.0,63911.0,0.002]
[1721356366382,0.001,63912.0,63911.0,0.002]
[1721356366784,0.001,63912.0,63911.0,0.158467]
[1721356367017,0.00183,63912.0,63911.0,0.471402]
[1721356367623,0.00183,63912.0,63911.0,0.64878374]
[1721356367811,0.00183,63912.0,63911.0,1.09168163]
[1721356368411,0.00183,63912.0,63911.0,0.96171874]
[1721356370414,0.00083,63912.0,63911.0,0.96171874]
[1721356370760,0.00083,63912.0,63911.0,0.96471874]
[1721356371309,0.00083,63912.0,63911.0,0.95971874]
[1721356372118,0.00083,63912.0,63911.0,0.96871874]
[1721356373007,0.00083,63912.0,63911.0,0.98071874]
[1721356373213,0.00083,63912.0,63911.0,0.96871874]
[1721356373617,0.00083,63912.0,63911.0,0.98171874]
[1721356376390,0.00083,63912.0,63911.0,1.11167128]
[1721356376588,0.00083,63912.0,63911.0,1.52460628]
[1721356376950,0.00083,63912.0,63911.0,1.58670628]
[1721356377156,0.00083,63912.0,63911.0,1.45675374]
[1721356380667,0.00083,63912.0,63911.0,1.39465374]
[1721356380863,0.00083,63912.0,63911.0,1.08171874]
[1721356387117,0.00083,63912.0,63911.0,1.39465374]
[1721356387477,0.00083,63912.0,63911.0,1.08171874]
[1721356388339,0.14353,63912.0,63911.0,0.022]
[1721356390688,1.238785,63912.0,63911.0,0.022]
[1721356390889,0.925855,63912.0,63911.0,0.022]
[1721356392175,0.925855,63912.0,63911.0,0.02160838]
[1721356392557,0.925855,63912.0,63911.0,0.013]
[1721356392752,0.925855,63912.0,63911.0,0.015]
[1721356392958,0.925855,63912.0,63911.0,0.002]
[1721356393382,0.46941,63910.0,63909.0,0.000913]
[1721356393536,0.61061,63910.0,63909.0,0.000913]
[1721356393956,0.92355,63910.0,63909.0,0.000913]
[1721356396319,0.92655,63910.0,63909.0,0.001913]
[1721356403121,0.92355,63910.0,63909.0,0.000913]
[1721356403358,0.92655,63910.0,63909.0,0.001913]
[1721356405193,0.92655,63910.0,63909.0,0.00152111]
[1721356406674,0.61361,63910.0,63909.0,0.00152111]
[1721356412291,0.92655,63910.0,63909.0,0.00152111]
[1721356412868,1.01695,63910.0,63909.0,0.00152111]
[1721356413061,1.01595,63910.0,63909.0,0.00152111]
[1721356413539,1.01395,63910.0,63909.0,0.00052111]
[1721356413739,1.01495,63910.0,63909.0,0.00052111]
[1721356413916,1.01695,63910.0,63909.0,0.00152111]
[1721356414119,0.92655,63910.0,63909.0,0.00152111]
[1721356414322,0.0832,63910.0,63909.0,0.00152111]
[1721356414524,0.003,63910.0,63909.0,0.00152111]
[1721356414874,0.003,63910.0,63909.0,1.02866285]
[1721356415074,0.003,63910.0,63909.0,1.12266285]
[1721356415280,0.001,63910.0,63909.0,0.80871885]
[1721356415494,0.00083,63912.0,63911.0,0.156467]
[1721356415693,0.00083,63912.0,63911.0,0.31084874]
[1721356417068,0.00083,63912.0,63911.0,0.31384874]
[1721356417268,0.00083,63912.0,63911.0,0.31345685]
[1721356418678,0.00183,63912.0,63911.0,0.31345685]
[1721356420423,0.07733,63912.0,63911.0,0.003]
[1721356420833,0.233795,63912.0,63911.0,0.003]
[1721356421296,0.233795,63912.0,63911.0,0.00260816]
[1721356421522,0.546725,63912.0,63911.0,0.00260816]
[1721356423767,0.233795,63912.0,63911.0,0.00260816]
[1721356424636,0.07733,63912.0,63911.0,0.00260816]
[1721356424839,0.00183,63912.0,63911.0,0.47201016]
[1721356425172,0.00183,63912.0,63911.0,0.15907516]
[1721356425398,0.00183,63912.0,63911.0,0.6263919]
[1721356425602,0.00183,63912.0,63911.0,0.9393269]
[1721356425776,0.00183,63912.0,63911.0,1.06929032]
[1721356426418,0.00183,63912.0,63911.0,1.51902486]
[1721356426611,0.00183,63912.0,63911.0,1.54202486]
[1721356427086,0.00183,63912.0,63911.0,1.5420186]
[1721356427325,0.00083,63912.0,63911.0,1.5420186]
[1721356427723,0.00183,63912.0,63911.0,1.5420186]
[1721356428131,0.00083,63912.0,63911.0,1.5420186]
[1721356428307,0.00083,63912.0,63911.0,1.55141044]
[1721356428772,0.00083,63912.0,63911.0,1.55441044]
[1721356428948,0.00083,63912.0,63911.0,1.55141044]